bitfinex/quotes_BTCUSD_20241117
["timestamp","ask_amount","ask_price","bid_price","bid_amount"]
[1731868882034,0.111118,89995.0,89985.0,0.111129]
[1731868882233,0.00541007,89994.0,89985.0,0.10250198]
[1731868882564,0.00541007,89994.0,89984.0,0.0826]
[1731868882656,0.10906255,89996.0,89986.0,0.222256]
[1731868882890,0.10906255,89996.0,89992.0,0.11112]
[1731868883123,0.00540741,89995.0,89992.0,0.11112]
[1731868883368,0.11446996,89995.0,89992.0,0.11112]
[1731868884018,0.03,89994.0,89992.0,0.11112]
[1731868884286,0.00546995,89994.0,89993.0,0.66894636]
[1731868884493,0.001,89996.0,89995.0,0.298717]
[1731868884734,0.16690868,90013.0,90012.0,0.111095]
[1731868884963,0.16690868,90013.0,90011.0,0.0826]
[1731868885196,0.10906255,90012.0,90000.0,0.0826]
[1731868885428,0.10906255,90012.0,89995.0,0.0497]
[1731868885645,0.111109,90001.0,90000.0,0.16690868]
[1731868886128,0.111109,90001.0,89993.0,0.0826]
[1731868886129,0.22222,90001.0,89993.0,0.0826]
[1731868886370,0.22222,90001.0,89992.0,0.001]
[1731868886371,0.111119,89993.0,89992.0,0.001]
[1731868886626,0.22764864,89993.0,89986.0,0.0826]
[1731868886861,0.22764864,89993.0,89983.0,0.16690868]
[1731868886862,0.11113,89984.0,89983.0,0.16690868]
[1731868887076,0.22019255,89984.0,89983.0,0.16690868]
[1731868887288,0.111132,89983.0,89978.0,0.111137]
[1731868887502,0.111132,89983.0,89979.0,0.1]
[1731868887720,0.222253,89988.0,89979.0,0.1]
[1731868887721,0.11445289,89982.0,89979.0,0.1]
[1731868887941,0.11445289,89982.0,89978.0,0.1]
[1731868888153,0.22558589,89982.0,89978.0,0.1]
[1731868888368,0.11445289,89982.0,89978.0,0.1]
[1731868888830,0.11445289,89982.0,89974.0,0.0008552]
[1731868889045,0.111139,89977.0,89974.0,0.0008552]
[1731868889263,0.222271,89980.0,89974.0,0.0008552]
[1731868889264,0.10906255,89976.0,89974.0,0.0008552]
[1731868889496,0.1144289,89976.0,89974.0,0.0008552]
[1731868889958,0.1144289,89976.0,89975.0,0.16690868]
[1731868890249,0.00536635,89976.0,89975.0,0.111141]
[1731868890464,0.00536635,89976.0,89975.0,0.348441]
[1731868890706,0.16690868,90002.0,89978.0,0.002]
[1731868890929,0.16690868,89989.0,89988.0,0.111125]
[1731868891159,0.222223,90000.0,89986.0,0.222256]
[1731868891377,0.111114,89998.0,89992.0,0.11112]
[1731868891586,0.10906255,89997.0,89992.0,0.11112]
[1731868891820,0.10906255,89997.0,89987.0,0.222254]
[1731868891821,0.10906255,89997.0,89996.0,0.111116]
[1731868892260,0.10906255,89997.0,89996.0,0.193716]
[1731868892511,0.0017106,90016.0,90005.0,0.111103]
[1731868892737,0.16690868,90010.0,90005.0,0.111103]
[1731868893013,0.10906255,90009.0,90004.0,0.16690868]
[1731868893218,0.10906255,90009.0,90008.0,0.111101]
[1731868894593,0.11006255,90009.0,90008.0,0.111101]
[1731868896220,0.11006255,90009.0,90008.0,0.112101]
[1731868896442,0.11006255,90009.0,90008.0,0.001]
[1731868896946,0.001,90009.0,90008.0,0.112101]
[1731868897162,0.001,90009.0,90008.0,0.24032277]
[1731868897416,0.001,90009.0,90008.0,0.348101]
[1731868897675,0.001,90009.0,90008.0,0.39278303]
[1731868897988,0.0017106,90016.0,90015.0,0.211092]
[1731868898399,0.00608517,90016.0,90015.0,0.211092]
[1731868898625,0.0017106,90016.0,90015.0,0.211092]
[1731868899029,0.11077315,90016.0,90009.0,0.1]
[1731868899246,0.10906255,90015.0,90011.0,0.111097]
[1731868899460,0.10906255,90015.0,90008.0,0.0778]
[1731868899461,0.11343894,90015.0,90008.0,0.0788]
[1731868899672,0.11343894,90015.0,90010.0,0.111098]
[1731868899876,0.10906255,90015.0,90009.0,0.2222]
[1731868900084,0.00437511,90014.0,90011.0,0.111096]
[1731868900294,0.10906255,90013.0,90011.0,0.111096]
[1731868900526,0.10906255,90013.0,90009.0,0.001]
[1731868900741,0.10906255,90013.0,90009.0,0.111099]
[1731868900947,0.00437255,90012.0,90009.0,0.001]
[1731868901159,0.00437255,90012.0,90010.0,0.111097]
[1731868901384,0.10906255,90013.0,90010.0,0.111097]
[1731868901906,0.00439248,90012.0,90010.0,0.111097]
[1731868902379,0.00439248,90012.0,90011.0,0.111097]
[1731868902793,0.10906255,90013.0,90011.0,0.111097]
[1731868903021,0.11006255,90013.0,90011.0,0.111097]
[1731868903245,0.11006255,90013.0,90008.0,0.300001]
[1731868903246,0.00439248,90012.0,90001.0,0.0809]
[1731868903450,0.111099,90010.0,90004.0,0.16690868]
[1731868903678,0.10906255,90009.0,90003.0,0.111106]
[1731868903890,0.111103,90007.0,90001.0,0.192009]
[1731868904109,0.10906255,90006.0,90002.0,0.111108]
[1731868904315,0.10906255,90006.0,90003.0,0.111107]
[1731868904316,0.11346668,90006.0,90003.0,0.111107]
[1731868904535,0.111111,90000.0,89992.0,0.0809]
[1731868904753,0.111111,90000.0,89974.0,0.0008552]
[1731868904754,0.22017355,90000.0,89993.0,0.16690868]
[1731868904979,0.22456663,90000.0,89993.0,0.16690868]
[1731868906349,0.22456663,90000.0,89985.0,0.111128]
[1731868906350,0.24756663,90000.0,89983.0,0.24780868]
[1731868906998,0.24756663,90000.0,89999.0,0.0018555]
[1731868907420,0.24756663,90000.0,89999.0,0.0008555]
[1731868907653,0.24756663,90000.0,89999.0,0.0018555]
[1731868908327,0.24927763,90000.0,89999.0,0.0018555]
[1731868918814,0.25427763,90000.0,89999.0,0.0018555]
[1731868919516,0.25927763,90000.0,89999.0,0.0008555]
[1731868919747,0.38467763,90000.0,89999.0,0.0008555]
[1731868919971,0.38467763,90000.0,89999.0,0.0018555]
[1731868920417,0.38467763,90000.0,89984.0,0.16690868]
[1731868920418,0.139129,89985.0,89984.0,0.16690868]
[1731868920682,0.24819155,89985.0,89984.0,0.16690868]
[1731868920919,0.25253243,89985.0,89984.0,0.16690868]
[1731868921200,0.11114,89976.0,89975.0,0.0008555]
[1731868921432,0.22020255,89976.0,89975.0,0.0008555]
[1731868921650,0.22453189,89976.0,89975.0,0.0008555]
[1731868921877,0.24753189,89976.0,89975.0,0.0008555]
[1731868922337,0.25253189,89976.0,89975.0,0.0008555]
[1731868922561,0.25753189,89976.0,89975.0,0.0008555]
[1731868922785,0.25253189,89976.0,89975.0,0.0008555]
[1731868923011,0.25753189,89976.0,89975.0,0.0008555]
[1731868923464,0.25753189,89976.0,89975.0,0.0018555]
[1731868925534,0.13639189,89976.0,89975.0,0.0018555]
[1731868925774,0.11339189,89976.0,89975.0,0.1129965]
[1731868925999,0.00432934,89976.0,89975.0,0.2399965]
[1731868926466,0.16690868,89991.0,89975.0,0.1288555]
[1731868926693,0.10906255,89990.0,89984.0,0.111129]
[1731868926915,0.11418829,89990.0,89984.0,0.111129]
[1731868927403,0.22531129,89990.0,89984.0,0.111129]
[1731868927642,0.111124,89989.0,89984.0,0.111129]
[1731868927886,0.10906255,89988.0,89984.0,0.111129]
[1731868928086,0.11418509,89988.0,89984.0,0.111129]
[1731868928304,0.11418509,89988.0,89986.0,0.111128]
[1731868928531,0.11418509,89988.0,89987.0,0.111127]
[1731868928802,0.11418509,89988.0,89985.0,0.111128]
[1731868929030,0.17690868,90011.0,89987.0,0.222254]
[1731868929251,0.17690868,90011.0,89989.0,0.10244414]
[1731868929252,0.10906255,89999.0,89989.0,0.10244414]
[1731868929484,0.10906255,89999.0,89995.0,0.111116]
[1731868929710,0.22017455,89999.0,89993.0,0.111119]
[1731868929948,0.22017455,89999.0,89994.0,0.111117]
[1731868930608,0.22718,90018.0,89998.0,0.16690868]
[1731868930849,0.1128016,90016.0,89999.0,0.24033401]
[1731868931073,0.0017106,90016.0,89999.0,0.24033401]
[1731868931774,0.0017106,90016.0,89999.0,0.24533401]
[1731868932031,0.0017106,90016.0,89999.0,0.345112]
[1731868932250,0.16690868,90013.0,89999.0,0.343112]
[1731868933185,0.16690868,90013.0,89999.0,0.38778295]
[1731868933424,0.0017106,90016.0,89999.0,0.38778295]
[1731868933425,0.0017106,90016.0,89999.0,0.38978295]
[1731868933644,0.0017106,90016.0,89999.0,0.39078295]
[1731868934128,0.0017106,90016.0,90015.0,0.39433614]
[1731868934372,0.0017106,90016.0,90015.0,0.54798028]
[1731868934856,0.0017106,90016.0,90015.0,0.44553614]
[1731868936060,0.0017106,90016.0,90015.0,0.54998028]
[1731868936283,0.0017106,90016.0,90015.0,0.55098028]
[1731868936500,0.0017106,90016.0,90015.0,0.55398028]
[1731868936728,0.0017106,90016.0,90015.0,0.55598028]
[1731868936957,0.0017106,90016.0,90015.0,0.60005089]
[1731868938580,0.0017106,90016.0,90015.0,0.49760675]
[1731868939013,0.0017106,90016.0,90015.0,0.60005089]
[1731868939234,0.0017106,90016.0,90015.0,0.59805089]
[1731868939450,0.0017106,90016.0,90015.0,0.60005089]
[1731868940120,0.0017106,90016.0,90015.0,0.59805089]
[1731868940337,0.0017106,90016.0,90015.0,0.60005089]
[1731868940804,0.0017106,90016.0,90015.0,0.49760675]
[1731868941703,0.0017106,90016.0,90015.0,0.49560675]
[1731868941916,0.0017106,90016.0,90015.0,0.49760675]
[1731868942135,0.0017106,90016.0,90015.0,0.49560675]
[1731868942361,0.0017106,90016.0,90015.0,0.49760675]
[1731868943244,0.0017106,90016.0,90015.0,0.49560675]
[1731868943474,0.0017106,90016.0,90015.0,0.59805089]
[1731868944593,0.0017106,90016.0,90015.0,0.60005089]
[1731868947572,0.0017092,90035.0,90034.0,0.111069]
[1731868947794,0.0017092,90035.0,90034.0,0.44571314]
[1731868948009,0.0017092,90035.0,90034.0,0.45071314]
[1731868948899,0.0017092,90035.0,90034.0,0.44971314]
[1731868949145,0.0017092,90035.0,90034.0,0.55215728]
[1731868949361,0.0017092,90035.0,90034.0,0.55315728]
[1731868949610,0.0017104,90048.0,90045.0,0.298755]
[1731868949826,0.0017104,90048.0,90045.0,0.55814328]
[1731868950043,0.49318255,90046.0,90045.0,0.55814328]
[1731868950283,0.49318255,90046.0,90045.0,0.58007128]
[1731868951131,0.49318255,90046.0,90045.0,0.57507128]
[1731868951352,0.49318255,90046.0,90045.0,0.58007128]
[1731868951573,0.49318255,90046.0,90045.0,0.373183]
[1731868951766,0.49318255,90046.0,90045.0,0.47762714]
[1731868952241,0.49318255,90046.0,90045.0,0.58007128]
[1731868952461,0.49318255,90046.0,90045.0,0.58107128]
[1731868952682,0.49318255,90046.0,90045.0,0.62587324]
[1731868952944,0.49318255,90046.0,90045.0,0.73493579]
[1731868953395,0.49318255,90046.0,90045.0,0.5114291]
[1731868953624,0.49318255,90046.0,90045.0,0.5214291]
[1731868954079,0.49318255,90046.0,90045.0,0.62387324]
[1731868954323,0.49318255,90046.0,90045.0,0.73493579]
[1731868955512,0.49318255,90046.0,90045.0,0.42098496]
[1731868955728,0.49318255,90046.0,90045.0,0.5015011]
[1731868956161,0.49318255,90046.0,90045.0,0.59894524]
[1731868956368,0.49318255,90046.0,90045.0,0.52375424]
[1731868957055,0.49318255,90046.0,90045.0,0.51675424]
[1731868957481,0.49318255,90046.0,90045.0,0.51375424]
[1731868957938,0.49318255,90046.0,90045.0,0.4895011]
[1731868958851,0.49318255,90046.0,90045.0,0.59394524]
[1731868959040,0.49318255,90046.0,90045.0,0.4895011]
[1731868959259,0.49318255,90046.0,90045.0,0.38705696]
[1731868959451,0.49318255,90046.0,90045.0,0.4895011]
[1731868960141,0.49318255,90046.0,90045.0,0.212055]
[1731868961285,0.49318255,90046.0,90045.0,0.211055]
[1731868961503,0.49318255,90046.0,90045.0,0.212055]
[1731868961963,0.49318255,90046.0,90045.0,0.211055]
[1731868962413,0.49318255,90046.0,90045.0,0.112055]
[1731868963571,0.49318255,90046.0,90045.0,0.212055]
[1731868964090,0.49318255,90046.0,90045.0,0.31449914]
[1731868964297,0.49318255,90046.0,90045.0,0.36779914]
[1731868964521,0.49318255,90046.0,90045.0,0.44939914]
[1731868964740,0.49318255,90046.0,90045.0,0.45039914]
[1731868965421,0.49318255,90046.0,90045.0,0.44939914]
[1731868965633,0.49318255,90046.0,90045.0,0.45239914]
[1731868966806,0.49318255,90046.0,90045.0,0.45739914]
[1731868967234,0.49318255,90046.0,90045.0,0.354955]
[1731868967462,0.49318255,90046.0,90045.0,0.353955]
[1731868967678,0.49318255,90046.0,90045.0,0.292655]
[1731868968114,0.0153008,90067.0,90055.0,0.253943]
[1731868968328,0.0153008,90067.0,90055.0,0.56544969]
[1731868969007,0.16690868,90065.0,90055.0,0.46300555]
[1731868969231,0.0153008,90067.0,90055.0,0.56544969]
[1731868969467,0.0153008,90067.0,90055.0,0.56344969]
[1731868970152,0.0153008,90067.0,90055.0,0.56544969]
[1731868970440,0.0153008,90067.0,90055.0,0.56344969]
[1731868970656,0.0153008,90067.0,90055.0,0.56544969]
[1731868971354,0.0153008,90067.0,90055.0,0.56644969]
[1731868971830,0.0153008,90067.0,90055.0,0.56344969]
[1731868972324,0.0153008,90067.0,90055.0,0.6101268]
[1731868972543,0.0153008,90067.0,90055.0,0.6324524]
[1731868972771,0.0153008,90067.0,90055.0,0.6344524]
[1731868977094,0.0153008,90067.0,90066.0,0.54911728]
[1731868977338,0.0153008,90067.0,90066.0,0.65817983]
[1731868977558,0.0153008,90067.0,90066.0,0.66017983]
[1731868977767,0.0017104,90079.0,90076.0,0.32546114]
[1731868977997,0.0017104,90079.0,90076.0,0.51242369]
[1731868978437,0.0017104,90079.0,90076.0,0.298917]
[1731868978666,0.0017104,90079.0,90076.0,0.293917]
[1731868978873,0.0017104,90079.0,90076.0,0.33871645]
[1731868979078,0.0017104,90079.0,90076.0,0.34071645]
[1731868979290,0.0017104,90079.0,90076.0,0.33871645]
[1731868979516,0.0017104,90079.0,90076.0,0.34371645]
[1731868980338,0.0017104,90079.0,90076.0,0.34471645]
[1731868980774,0.0017104,90079.0,90076.0,0.35594945]
[1731868980998,0.0017104,90079.0,90076.0,0.211017]
[1731868981212,0.0017104,90079.0,90076.0,0.22423681]
[1731868981394,0.0017104,90079.0,90076.0,0.45427955]
[1731868981632,0.0017104,90079.0,90076.0,0.45327955]
[1731868981850,0.0017104,90079.0,90076.0,0.344217]
[1731868982113,0.0017104,90079.0,90076.0,0.45627955]
[1731868982613,0.0017104,90079.0,90076.0,0.45427955]
[1731868982822,0.0017098,90090.0,90084.0,0.39635114]
[1731868983098,0.0017098,90090.0,90084.0,0.50741369]
[1731868983539,0.0017098,90090.0,90084.0,0.50541369]
[1731868984095,0.0017098,90090.0,90084.0,0.50641369]
[1731868985309,0.0017098,90090.0,90084.0,0.50841369]
[1731868985722,0.0017098,90090.0,90084.0,0.31445114]
[1731868986563,0.0017098,90090.0,90084.0,0.31345114]
[1731868986772,0.0017098,90090.0,90084.0,0.31445114]
[1731868986961,0.0017098,90090.0,90084.0,0.212007]
[1731868987173,0.0017098,90090.0,90084.0,0.211007]
[1731868987389,0.0017098,90090.0,90082.0,0.111009]
[1731868987600,0.0017098,90090.0,90077.0,0.222029]
[1731868987601,0.11077655,90085.0,90084.0,0.001]
[1731868987809,0.11077655,90085.0,90084.0,0.112007]
[1731868988014,0.11541678,90085.0,90084.0,0.111007]
[1731868989125,0.00635423,90085.0,90084.0,0.111007]
[1731868989338,0.001714,90085.0,90084.0,0.112007]
[1731868989805,0.001714,90085.0,90084.0,0.111007]
[1731868990037,0.001714,90085.0,90084.0,0.112007]
[1731868990478,0.001714,90085.0,90084.0,0.111007]
[1731868990902,0.001714,90085.0,90084.0,0.112007]
[1731868991519,0.001714,90085.0,90084.0,0.212007]
[1731868991730,0.001714,90085.0,90084.0,0.2612]
[1731868992813,0.001714,90085.0,90084.0,0.41976255]
[1731868993019,0.001714,90085.0,90084.0,0.42076255]
[1731868993223,0.001714,90085.0,90084.0,0.41876255]
[1731868993438,0.001714,90085.0,90084.0,0.41976255]
[1731868994015,0.001714,90085.0,90084.0,0.41876255]
[1731868994228,0.001714,90085.0,90084.0,0.41976255]
[1731868996406,0.001714,90085.0,90084.0,0.49786255]
[1731868996638,0.0017104,90089.0,90088.0,0.223002]
[1731868996845,0.0017104,90089.0,90088.0,0.45966455]
[1731868997600,0.0017104,90089.0,90088.0,0.45766455]
[1731868997808,0.0017104,90089.0,90088.0,0.45866455]
[1731868998024,0.0017104,90089.0,90088.0,0.46066455]
[1731868999261,0.0017106,90107.0,90106.0,0.29818]
[1731868999481,0.0017106,90107.0,90106.0,0.44902414]
[1731869000615,0.0017106,90107.0,90106.0,0.45002414]
[1731869001305,0.0017106,90107.0,90106.0,0.45502414]
[1731869001544,0.0008553,90126.0,90125.0,0.110957]
[1731869001783,0.0008553,90126.0,90125.0,0.36180114]
[1731869003345,0.0008553,90126.0,90125.0,0.40176725]
[1731869003853,0.0008553,90126.0,90125.0,0.43069062]
[1731869004288,0.0008553,90126.0,90125.0,0.36280114]
[1731869004731,0.0008553,90126.0,90125.0,0.46524528]
[1731869004940,0.0008553,90126.0,90125.0,0.36780114]
[1731869005191,0.0008553,90126.0,90125.0,0.47024528]
[1731869005433,0.0008553,90126.0,90125.0,0.40876887]
[1731869005657,0.0008553,90126.0,90125.0,0.64697335]
[1731869005878,0.005,90171.0,90156.0,0.10244414]
[1731869005879,0.01123428,90170.0,90156.0,0.10244414]
[1731869006093,0.16690868,90157.0,90156.0,0.110918]
[1731869006330,0.110905,90167.0,90162.0,0.110911]
[1731869006526,0.21996955,90166.0,90145.0,0.221864]
[1731869006737,0.10906255,90166.0,90154.0,0.16690868]
[1731869006947,0.10906255,90166.0,90157.0,0.221835]
[1731869007635,0.10906255,90166.0,90158.0,0.221832]
[1731869007845,0.21996955,90166.0,90160.0,0.110913]
[1731869008046,0.10906255,90166.0,90156.0,0.001]
[1731869008246,0.10906255,90166.0,90161.0,0.110911]
[1731869008390,0.21996855,90166.0,90161.0,0.110911]
[1731869008594,0.110909,90164.0,90159.0,0.110914]
[1731869008829,0.10906255,90163.0,90155.0,0.221838]
[1731869009072,0.10906255,90163.0,90162.0,0.110911]
[1731869009274,0.10906255,90163.0,90154.0,0.16790868]
[1731869009275,0.005,90183.0,90159.0,0.10244414]
[1731869009421,0.10906255,90170.0,90166.0,0.221811]
[1731869009601,0.10906255,90170.0,90169.0,0.110902]
[1731869011941,0.10906255,90170.0,90169.0,0.104114]
[1731869012352,0.0008553,90176.0,90169.0,0.104114]
[1731869012353,0.1117503,90176.0,90169.0,0.104114]
[1731869012557,0.0008553,90176.0,90175.0,0.110895]
[1731869012811,0.0008553,90176.0,90171.0,0.2218]
[1731869013007,0.0008553,90176.0,90174.0,0.110896]
[1731869013229,0.0008553,90176.0,90175.0,0.110895]
[1731869014385,0.0008553,90176.0,90172.0,0.110899]
[1731869014710,0.0008553,90176.0,90169.0,0.001]
[1731869014711,0.110901,90170.0,90169.0,0.001]
[1731869014915,0.21996355,90170.0,90169.0,0.001]
[1731869015265,0.11376255,90170.0,90153.0,0.221843]
[1731869015469,0.332719,90166.0,90165.0,0.16690868]
[1731869015703,0.332719,90166.0,90153.0,0.221843]
[1731869015704,0.33087555,90166.0,90153.0,0.221843]
[1731869015917,0.10906255,90165.0,90153.0,0.221843]
[1731869016156,0.005,90163.0,90137.0,0.15084414]
[1731869016390,0.005,90163.0,90133.0,0.16690868]
[1731869016391,0.11093,90147.0,90143.0,0.16690868]
[1731869016696,0.11092,90155.0,90154.0,0.001]
[1731869016927,0.110931,90146.0,90143.0,0.16690868]
[1731869017370,0.02,90146.0,90143.0,0.16690868]
[1731869017606,0.02,90146.0,90141.0,0.110937]
[1731869017900,0.02,90146.0,90121.0,0.01]
[1731869017901,0.10906255,90145.0,90128.0,0.221906]
[1731869018119,0.110941,90138.0,90134.0,0.16690868]
[1731869018344,0.11547375,90137.0,90134.0,0.16690868]
[1731869018774,0.11547375,90137.0,90132.0,0.110948]
[1731869019636,0.110945,90135.0,90134.0,0.001]
[1731869019870,0.22000755,90135.0,90134.0,0.001]
[1731869020117,0.11546345,90135.0,90134.0,0.110945]
[1731869020362,0.11546345,90135.0,90132.0,0.001]
[1731869020813,0.11546345,90135.0,90132.0,0.111947]
[1731869021030,0.11546345,90135.0,90134.0,0.110945]
[1731869021256,0.11546345,90135.0,90132.0,0.111947]
[1731869021748,0.0064009,90135.0,90126.0,0.110955]
[1731869021959,0.0064009,90135.0,90134.0,0.110945]
[1731869022171,0.115934,90144.0,90136.0,0.110942]
[1731869022425,0.11547724,90143.0,90134.0,0.111945]
[1731869022654,0.11547724,90143.0,90134.0,0.001]
[1731869022857,0.110939,90140.0,90133.0,0.110946]
[1731869023344,0.00640743,90139.0,90134.0,0.111945]
[1731869024020,0.110929,90148.0,90144.0,0.002]
[1731869024231,0.387224,90173.0,90148.0,0.002]
[1731869024232,0.110917,90157.0,90148.0,0.002]
[1731869024469,0.33090055,90156.0,90148.0,0.112928]
[1731869024709,0.10906255,90156.0,90148.0,0.002]
[1731869025145,0.10906255,90156.0,90150.0,0.221851]
[1731869025381,0.10906255,90156.0,90148.0,0.002]
[1731869025382,0.221805,90169.0,90153.0,0.005]
[1731869025608,0.0008553,90176.0,90162.0,0.002]
[1731869025872,0.10906255,90169.0,90163.0,0.110909]
[1731869026089,0.10906255,90169.0,90162.0,0.002]
[1731869026090,0.10906255,90168.0,90164.0,0.110908]
[1731869026953,0.0008553,90176.0,90171.0,0.005]
[1731869027188,0.0008553,90176.0,90173.0,0.110897]
[1731869027615,0.0008553,90176.0,90169.0,0.002]
[1731869027829,0.1117493,90176.0,90171.0,0.110899]
[1731869028247,0.0008553,90176.0,90170.0,0.332701]
[1731869028522,0.0008553,90176.0,90172.0,0.110898]
[1731869028754,0.0008553,90176.0,90173.0,0.001]
[1731869028991,0.10562763,90174.0,90173.0,0.001]
[1731869029199,0.10906255,90174.0,90169.0,0.002]
[1731869029427,0.0008553,90176.0,90170.0,0.16790868]
[1731869029428,0.10906255,90173.0,90170.0,0.16790868]
[1731869029650,0.10906255,90173.0,90172.0,0.110899]
[1731869029872,0.10906255,90173.0,90170.0,0.16790868]
[1731869029873,0.10906255,90173.0,90170.0,0.1119]
[1731869030085,0.11500964,90173.0,90170.0,0.1119]
[1731869030299,0.11500964,90173.0,90172.0,0.002]
[1731869030959,0.22590664,90173.0,90172.0,0.002]
[1731869032014,0.22590664,90173.0,90172.0,0.001]
[1731869034085,0.22590664,90173.0,90165.0,0.16690868]
[1731869034086,0.110905,90167.0,90165.0,0.16690868]
[1731869034293,0.11500964,90173.0,90165.0,0.16690868]
[1731869034294,0.11684409,90173.0,90172.0,0.001]
[1731869034501,0.110897,90173.0,90172.0,0.001]
[1731869034710,0.110897,90173.0,90168.0,0.110903]
[1731869035196,0.110897,90173.0,90172.0,0.001]
[1731869035614,0.110897,90173.0,90168.0,0.110903]
[1731869035830,0.10906255,90172.0,90171.0,0.110899]
[1731869036295,0.0008553,90176.0,90175.0,0.110895]
[1731869036505,0.00596933,90172.0,90171.0,0.1109]
[1731869036718,0.10991785,90176.0,90171.0,0.110899]
[1731869036940,0.10991785,90176.0,90168.0,0.001]
[1731869037161,0.110896,90174.0,90168.0,0.001]
[1731869037376,0.10906255,90175.0,90168.0,0.001]
[1731869037377,0.110901,90171.0,90168.0,0.001]
[1731869037590,0.33683995,90173.0,90168.0,0.001]
[1731869037591,0.00597602,90170.0,90168.0,0.111903]
[1731869037796,0.00597602,90170.0,90168.0,0.110903]
[1731869038001,0.21996055,90173.0,90172.0,0.001]
[1731869038436,0.10906255,90173.0,90172.0,0.001]
[1731869038655,0.10991715,90173.0,90170.0,0.1109]
[1731869038912,0.10991715,90173.0,90168.0,0.001]
[1731869039321,0.10991715,90173.0,90166.0,0.221813]
[1731869039536,0.10991715,90173.0,90172.0,0.001]
[1731869039953,0.10991715,90173.0,90172.0,0.111899]
[1731869040424,0.10991715,90173.0,90172.0,0.001]
[1731869040637,0.10991715,90173.0,90172.0,0.0775]
[1731869040850,0.10991715,90173.0,90170.0,0.110901]
[1731869040851,0.10991715,90173.0,90167.0,0.110904]
[1731869041058,0.10991715,90173.0,90168.0,0.001]
[1731869041495,0.10991715,90173.0,90171.0,0.110899]
[1731869041709,0.10991715,90173.0,90172.0,0.110899]
[1731869041923,0.10991715,90173.0,90172.0,0.001]
[1731869042381,0.10991715,90173.0,90171.0,0.1109]
[1731869042623,0.10991715,90173.0,90172.0,0.110899]
[1731869043251,0.0008546,90173.0,90172.0,0.110899]
[1731869043741,0.0008546,90173.0,90171.0,0.001]
[1731869043981,0.110899,90172.0,90166.0,0.332718]
[1731869044226,0.00598027,90172.0,90168.0,0.110903]
[1731869044466,0.11504282,90172.0,90168.0,0.110903]
[1731869044981,0.21996355,90171.0,90165.0,0.16690868]
[1731869045195,0.00597584,90170.0,90165.0,0.16690868]
[1731869045446,0.10906255,90169.0,90165.0,0.27781568]
[1731869045949,0.10906255,90169.0,90168.0,0.001]
[1731869046188,0.21996455,90169.0,90168.0,0.001]
[1731869046948,0.21996455,90169.0,90165.0,0.110907]
[1731869047920,0.10906255,90169.0,90165.0,0.001]
[1731869048187,0.21996555,90169.0,90165.0,0.001]
[1731869048432,0.110904,90168.0,90163.0,0.110909]
[1731869048666,0.21996655,90168.0,90165.0,0.001]
[1731869048907,0.10906255,90168.0,90165.0,0.001]
[1731869049598,0.21996655,90168.0,90165.0,0.001]
[1731869050035,0.10906255,90168.0,90164.0,0.110908]
[1731869050255,0.21996655,90168.0,90165.0,0.001]
[1731869050930,0.21996655,90168.0,90163.0,0.110909]
[1731869051146,0.21996655,90168.0,90165.0,0.001]
[1731869051588,0.00595112,90167.0,90165.0,0.001]
[1731869052016,0.00595112,90167.0,90163.0,0.110909]
[1731869053303,0.00595112,90167.0,90163.0,0.111909]
[1731869053506,0.00595112,90167.0,90163.0,0.001]
[1731869053712,0.00595112,90167.0,90164.0,0.110908]
[1731869054132,0.10906255,90168.0,90164.0,0.110908]
[1731869054384,0.00595859,90166.0,90164.0,0.110908]
[1731869054596,0.00595454,90165.0,90164.0,0.110908]
[1731869055005,0.10906255,90168.0,90164.0,0.110908]
[1731869055219,0.0059507,90165.0,90163.0,0.001]
[1731869055451,0.10906255,90168.0,90164.0,0.110909]
[1731869055940,0.00595304,90167.0,90164.0,0.110909]
[1731869056384,0.00595304,90167.0,90164.0,0.111909]
[1731869057033,0.00595304,90167.0,90164.0,0.110909]
[1731869057250,0.00595304,90167.0,90164.0,0.111909]
[1731869058726,0.00595304,90167.0,90165.0,0.110907]
[1731869058910,0.00595304,90167.0,90164.0,0.001]
[1731869059367,0.00595304,90167.0,90165.0,0.110907]
[1731869060027,0.00595304,90167.0,90165.0,0.001]
[1731869065872,0.00595304,90167.0,90165.0,0.111907]
[1731869066522,0.00595304,90167.0,90166.0,0.110906]
[1731869068478,0.00595304,90167.0,90166.0,0.111906]
[1731869068692,0.00595304,90167.0,90166.0,0.001]
[1731869068899,0.11685804,90167.0,90166.0,0.001]
[1731869069112,0.110907,90165.0,90164.0,0.0017092]
[1731869069341,0.21996955,90165.0,90164.0,0.0017092]
[1731869069583,0.22541531,90165.0,90164.0,0.0017092]
[1731869071736,0.22541531,90165.0,90164.0,0.0027092]
[1731869072190,0.22541531,90165.0,90164.0,0.0017092]
[1731869072417,0.22541531,90165.0,90164.0,0.0027092]
[1731869073313,0.32417134,90165.0,90164.0,0.0027092]
[1731869073537,0.32417187,90165.0,90164.0,0.0027092]
[1731869074405,0.22541531,90165.0,90164.0,0.0027092]
[1731869074612,0.22541531,90165.0,90164.0,0.0017092]
[1731869074825,0.22541531,90165.0,90164.0,0.0027092]
[1731869075237,0.22541531,90165.0,90164.0,0.0017092]
[1731869075703,0.22541531,90165.0,90164.0,0.0027092]
[1731869078495,0.22541531,90165.0,90154.0,0.110921]
[1731869078496,0.110915,90159.0,90154.0,0.1086302]
[1731869078696,0.110915,90159.0,90158.0,0.16690868]
[1731869078898,0.110915,90159.0,90154.0,0.1086302]
[1731869079557,0.221825,90162.0,90150.0,0.298251]
[1731869079781,0.0987561,90167.0,90150.0,0.298251]
[1731869079782,0.221827,90160.0,90150.0,0.0764]
[1731869079991,0.110919,90156.0,90150.0,0.0764]
[1731869080201,0.10906255,90155.0,90150.0,0.187325]
[1731869080403,0.21998255,90155.0,90150.0,0.187325]
[1731869080613,0.21998255,90155.0,90154.0,0.001]
[1731869081128,0.21998255,90155.0,90150.0,0.187325]
[1731869081360,0.110923,90153.0,90150.0,0.0764]
[1731869081617,0.10906255,90152.0,90150.0,0.0774]
[1731869081829,0.11445874,90152.0,90150.0,0.0774]
[1731869082052,0.11445874,90152.0,90150.0,0.0764]
[1731869082265,0.110927,90149.0,90148.0,0.0017092]
[1731869082480,0.21998955,90149.0,90148.0,0.0017092]
[1731869082692,0.22537935,90149.0,90148.0,0.0017092]
[1731869083395,0.24837935,90149.0,90148.0,0.0017092]
[1731869083609,0.34709123,90149.0,90148.0,0.0017092]